bitfinex/quotes_SOLUSD_20250803
["timestamp","ask_amount","ask_price","bid_price","bid_amount"]
[1754209161190,0.03,162.03,162.01,12.14288618]
[1754209161368,26.03,162.03,162.02,43.18]
[1754209164382,26.71,162.03,162.02,43.18]
[1754209171878,26.03,162.03,162.02,43.18]
[1754209174898,26.03,162.03,162.02,51.18918194]
[1754209175099,0.03,162.03,162.02,51.18918194]
[1754209180817,0.72,162.03,162.01,7.32918194]
[1754209181027,26.72,162.03,162.02,43.18]
[1754209181314,26.03,162.03,162.02,43.18]
[1754209181899,26.03,162.03,162.02,50.50918194]
[1754209182990,26.03,162.03,162.02,51.18918194]
[1754209185210,26.03,162.03,162.02,43.86]
[1754209185514,26.03,162.03,162.02,51.18918194]
[1754209189321,30.19307371,162.03,162.02,51.18918194]
[1754209192402,30.19307371,162.03,162.02,51.16918194]
[1754209194833,4.19307371,162.03,162.02,51.16918194]
[1754209195001,0.03,162.03,162.02,51.16918194]
[1754209196808,0.03,162.03,162.02,51.22918194]
[1754209197729,0.03,162.03,162.02,8.06918194]
[1754209198026,0.03,162.03,162.02,51.22918194]
[1754209207036,0.03,162.03,162.02,8.06918194]
[1754209207255,0.75,162.03,162.02,0.06]
[1754209207410,26.75,162.03,162.02,43.2]
[1754209207611,30.91559476,162.03,162.02,43.2]
[1754209208424,30.91559476,162.03,162.02,0.06]
[1754209208738,30.91559476,162.03,162.02,43.2]
[1754209209546,30.91559476,162.03,162.02,0.06]
[1754209209836,38.2447767,162.03,162.02,0.06]
[1754209210021,38.2447767,162.03,162.02,43.2]
[1754209215138,38.2447767,162.03,162.02,0.06]
[1754209216032,60.21591749,162.03,162.02,0.06]
[1754209216234,65.02946067,162.03,162.0,43.2]
[1754209216441,33.32918194,162.01,162.0,43.2]
[1754209216624,37.4947767,162.01,162.0,43.2]
[1754209216952,42.34781323,162.01,162.0,43.2]
[1754209218233,42.34113441,162.01,162.0,0.06]
[1754209220848,4.15891594,162.01,162.0,0.06]
[1754209222161,30.15891594,162.01,162.0,0.72]
[1754209222760,4.15891594,162.01,162.0,12.18221847]
[1754209223062,26.0,162.01,162.0,12.18221847]
[1754209223263,26.0,162.01,162.0,0.72]
[1754209223858,26.0,162.01,162.0,12.18221847]
[1754209224157,26.0,162.01,162.0,0.72]
[1754209224355,30.1549619,162.01,162.0,0.72]
[1754209225843,26.0,162.01,162.0,0.72]
[1754209228666,26.0,162.01,162.0,0.06]
[1754209228846,16.33669493,162.01,162.0,0.06]
[1754209231041,42.33669493,162.01,162.0,0.06]
[1754209231258,16.33669493,162.01,162.0,0.06]
[1754209236301,42.33669493,162.01,162.0,0.06]
[1754209236455,52.33669493,162.01,162.0,0.06]
[1754209236660,26.33669493,162.01,162.0,0.06]
[1754209237688,43.1213789,162.01,162.0,0.06]
[1754209242180,33.1213789,162.01,162.0,0.06]
[1754209242408,43.1213789,162.01,162.0,0.06]
[1754209242581,33.1213789,162.01,162.0,0.06]
[1754209243786,32.4013789,162.01,162.0,0.06]
[1754209243961,41.61669493,162.01,162.0,0.06]
[1754209244371,15.61669493,162.01,162.0,0.72]
[1754209244570,15.61669493,162.01,162.0,0.06]
[1754209245173,16.30669493,162.01,162.0,0.06]
[1754209252171,38.29002383,162.01,162.0,0.06]
[1754209254789,34.16369991,162.01,162.0,0.06]
[1754209256404,28.96505498,162.01,162.0,0.06]
[1754209256705,34.17415249,162.01,162.0,0.06]
[1754209256997,34.18695404,162.01,162.0,0.06]
[1754209259205,28.97785653,162.01,161.99,0.06]
[1754209259405,16.71390774,162.0,161.99,0.06]
[1754209259978,17.40390774,162.0,161.99,0.06]
[1754209261079,16.71390774,162.0,161.99,0.06]
[1754209264113,16.71495354,162.0,161.99,0.06]
[1754209267695,17.36495354,162.0,161.99,0.06]
[1754209267912,34.14963751,162.0,161.99,0.06]
[1754209268113,81.46203112,162.0,161.99,0.06]
[1754209268404,52.11845292,162.0,161.99,0.06]
[1754209269313,95.23845292,162.0,161.99,0.06]
[1754209269513,97.71576992,162.0,161.99,0.06]
[1754209270510,10.0,161.99,161.98,0.06]
[1754209270679,22.15436521,161.99,161.98,0.06]
[1754209271483,24.63168221,161.99,161.98,0.06]
[1754209274310,26.78468397,161.98,161.97,0.06]
[1754209274493,43.4991603,161.98,161.97,0.06]
[1754209274688,44.1491603,161.98,161.97,0.06]
[1754209274891,38.93904918,161.98,161.97,0.06]
[1754209275415,46.27494318,161.98,161.97,0.06]
[1754209277805,111.59940012,161.98,161.97,0.06]
[1754209278015,26.0,161.91,161.9,0.69]
[1754209278216,30.16847066,161.91,161.9,0.69]
[1754209280313,26.0,161.91,161.87,0.06]
[1754209280519,26.0,161.91,161.88,0.69]
[1754209282019,33.33589455,161.91,161.88,0.69]
[1754209282204,26.0,161.9,161.88,0.69]
[1754209283821,26.0,161.9,161.88,0.75]
[1754209285527,26.0,161.9,161.88,8.08589455]
[1754209285723,16.78468397,161.95,161.89,8.02589455]
[1754209286025,16.78468397,161.95,161.91,7.33589455]
[1754209286026,26.0,161.93,161.91,7.33589455]
[1754209286329,8.085895,161.97,161.92,8.02589455]
[1754209286628,8.085895,161.97,161.93,8.02589455]
[1754209286629,4.15932664,161.96,161.93,8.02589455]
[1754209286805,26.0,161.95,161.93,7.33589455]
[1754209287124,7.33589455,161.98,161.94,0.69]
[1754209287306,26.0,161.95,161.94,0.69]
[1754209287510,30.15942599,161.95,161.94,0.69]
[1754209288118,30.15942599,161.95,161.94,8.02589455]
[1754209288516,4.15942599,161.95,161.94,8.02589455]
[1754209288715,4.15942599,161.98,161.94,8.02589455]
[1754209288934,26.0,161.96,161.95,0.69]
[1754209289123,30.15942599,161.96,161.95,0.69]
[1754209289426,30.15942599,161.96,161.95,12.15042425]
[1754209289595,30.15942599,161.96,161.95,0.69]
[1754209295297,30.15942599,161.96,161.9,43.12]
[1754209295503,26.0,161.93,161.91,12.16042425]
[1754209295703,26.0,161.93,161.92,0.7]
[1754209298025,26.0,161.92,161.9,11.46042425]
[1754209298210,26.0,161.92,161.91,0.7]
[1754209299100,37.46042425,161.96,161.91,12.16042425]
[1754209299305,4.16243501,161.95,161.92,0.7]
[1754209299712,30.16243501,161.95,161.92,12.16042425]
[1754209299911,26.0,161.95,161.92,11.46042425]
[1754209300112,12.12042425,161.98,161.92,11.46042425]
[1754209300113,26.0,161.94,161.93,0.7]
[1754209300515,30.16264354,161.94,161.93,0.7]
[1754209300839,5.20786885,161.99,161.93,12.16042425]
[1754209301008,4.16238162,161.99,161.96,11.46042425]
[1754209301337,30.16238162,161.98,161.96,0.7]
[1754209301534,4.16238162,161.97,161.96,0.7]
[1754209303310,26.0,161.97,161.96,0.7]
[1754209303533,30.16238162,161.97,161.96,0.7]
[1754209305533,30.16238162,161.97,161.96,12.16042425]
[1754209306643,30.16238162,161.97,161.96,0.7]
[1754209306842,30.16238162,161.97,161.96,12.16042425]
[1754209306843,30.19238162,161.97,161.96,12.16042425]
[1754209309161,30.19238162,161.97,161.96,0.7]
[1754209309439,30.19238162,161.97,161.96,12.16042425]
[1754209309639,30.19238162,161.97,161.93,0.06]
[1754209309845,30.16161015,161.96,161.94,11.46042425]
[1754209310030,26.0,161.96,161.94,11.46042425]
[1754209310637,0.66,161.96,161.93,0.76]
[1754209310949,4.8219528,161.96,161.93,12.22042425]
[1754209311752,26.0,161.95,161.93,12.22042425]
[1754209313820,26.0,161.95,161.94,12.16042425]
[1754209314023,26.03,161.97,161.94,12.16042425]
[1754209314220,4.16211875,161.96,161.95,0.7]
[1754209315036,4.16211875,161.96,161.95,12.16042425]
[1754209315343,0.03,161.97,161.95,12.16042425]
[1754209315644,0.03,161.97,161.93,0.06]
[1754209315645,4.19174658,161.97,161.96,11.46042425]
[1754209315847,26.0,161.96,161.95,11.46042425]
[1754209316053,26.0,161.96,161.95,12.16042425]
[1754209322249,0.03,161.97,161.95,12.16042425]
[1754209322458,26.0,161.96,161.95,11.46042425]
[1754209323438,26.03,161.97,161.95,11.46042425]
[1754209323682,26.03,161.97,161.95,12.16042425]
[1754209324637,26.03,161.97,161.96,11.46042425]
[1754209324838,30.19186365,161.97,161.96,11.46042425]
[1754209327636,4.19186365,161.97,161.96,11.46042425]
[1754209327979,0.03,161.97,161.96,11.46042425]
[1754209328137,30.19186365,161.97,161.96,11.46042425]
[1754209328337,30.19186365,161.97,161.96,12.16042425]
[1754209329389,4.19186365,161.97,161.96,12.16042425]
[1754209329596,0.03,161.97,161.96,12.16042425]
[1754209330245,4.19592981,161.97,161.96,12.16042425]
[1754209331661,4.19592981,161.97,161.94,0.06]
[1754209331873,4.19592981,161.97,161.96,11.46042425]
[1754209334168,30.19592981,161.97,161.96,11.46042425]
[1754209335866,4.19592981,161.97,161.96,11.46042425]
[1754209336441,4.19592981,161.97,161.96,12.16042425]
[1754209340047,4.19592981,161.97,161.96,11.46042425]
[1754209340771,4.19592981,161.97,161.96,12.16042425]
[1754209342870,4.19592981,161.97,161.96,8.03388955]
[1754209344173,30.19592981,161.97,161.96,0.7]
[1754209344371,4.19592981,161.97,161.96,8.03388955]
[1754209345074,4.19592981,161.97,161.96,7.33388955]
[1754209345660,30.19592981,161.97,161.96,7.33388955]
[1754209346662,4.19592981,161.97,161.96,7.33388955]
[1754209347965,4.19592981,161.97,161.96,8.03388955]
[1754209352083,4.19592981,161.97,161.96,8.09388955]
[1754209352780,4.19592981,161.97,161.96,51.17388955]
[1754209365902,0.03,161.97,161.96,51.17388955]
[1754209366093,4.19592981,161.97,161.96,51.17388955]
[1754209366272,0.03,161.97,161.96,51.17388955]
[1754209366473,4.19592981,161.97,161.96,51.17388955]
[1754209366782,0.03,161.97,161.96,51.17388955]
[1754209366985,4.19592981,161.97,161.96,51.17388955]
[1754209367180,0.03,161.97,161.96,51.17388955]
[1754209367497,4.19592981,161.97,161.96,51.17388955]
[1754209367691,0.03,161.97,161.96,51.17388955]
[1754209367892,4.19592981,161.97,161.96,51.17388955]
[1754209368105,0.03,161.97,161.96,51.17388955]
[1754209368476,0.03,161.99,161.96,67.95857352]
[1754209368687,0.03,161.99,161.98,7.33388955]
[1754209368876,0.03,161.99,161.98,50.41388955]
[1754209369076,0.03,161.99,161.98,51.12388955]
[1754209371483,0.03,161.99,161.98,43.79]
[1754209371679,0.03,161.99,161.98,51.12388955]
[1754209374600,0.03,161.99,161.98,7.33388955]
[1754209374799,0.75,161.99,161.98,50.39388955]
[1754209375386,0.03,161.99,161.98,50.39388955]
[1754209375607,0.03,161.99,161.98,51.10388955]
[1754209378478,0.03,161.99,161.98,50.39388955]
[1754209378684,0.03,161.99,161.98,7.33388955]
[1754209378907,0.75,161.99,161.98,43.06]
[1754209379112,0.75,161.99,161.98,50.39388955]
[1754209379485,0.03,161.99,161.98,50.39388955]
[1754209382617,0.75,161.99,161.98,43.06]
[1754209382786,4.91543771,161.99,161.96,7.39388955]
[1754209382986,0.72,161.98,161.97,43.06]
[1754209383219,0.72,161.98,161.97,50.39388955]
[1754209383521,4.88543771,161.98,161.97,50.39388955]
[1754209385596,4.88543771,161.98,161.97,43.06]
[1754209392093,4.16543771,161.98,161.97,43.06]
[1754209393719,4.81543771,161.98,161.97,43.06]
[1754209394590,4.81543771,161.98,161.97,43.12]
[1754209395899,4.16543771,161.98,161.97,43.12]
[1754209398610,4.81543771,161.98,161.97,0.06]
[1754209398808,4.81543771,161.98,161.97,43.12]
[1754209402418,12.14932726,161.98,161.97,0.06]
[1754209402625,17.3561244,161.98,161.97,0.06]
[1754209402937,19.8332884,161.98,161.97,0.06]
[1754209404325,14.62649126,161.98,161.97,0.06]
[1754209413204,12.14932726,161.98,161.97,0.06]
[1754209413606,4.81543771,161.98,161.97,0.06]
[1754209413909,12.14932726,161.98,161.97,0.06]
[1754209415733,12.17932726,161.98,161.97,0.06]
[1754209422352,17.3861244,161.98,161.97,0.06]
[1754209434459,24.11857352,161.97,161.96,0.06]
[1754209434625,28.98401123,161.97,161.96,0.06]
[1754209436651,35.92640741,161.97,161.96,0.06]
[1754209438647,38.40403141,161.97,161.96,0.06]
[1754209441834,37.70403141,161.97,161.96,0.73]
[1754209442630,37.70403141,161.97,161.96,0.06]
[1754209443032,30.76163523,161.97,161.96,0.06]
[1754209444053,38.40403141,161.97,161.96,0.06]
[1754209444441,38.40403141,161.97,161.95,0.06]
[1754209444627,28.28401123,161.96,161.95,0.06]
[1754209445654,30.76163523,161.96,161.95,0.06]
[1754209447152,23.42774568,161.96,161.95,0.06]
[1754209447349,30.76163523,161.96,161.95,0.77]
[1754209447662,28.28401123,161.96,161.95,0.77]
[1754209449273,28.28401123,161.96,161.94,0.06]
[1754209449475,16.71055449,161.95,161.94,0.06]
[1754209451468,17.43055449,161.95,161.94,0.06]
[1754209451763,16.71055449,161.95,161.94,0.06]
[1754209452945,12.21932726,161.95,161.94,0.06]
[1754209457973,10.09582988,161.95,161.94,0.06]
[1754209458175,16.70971943,161.95,161.94,0.06]
[1754209462857,12.21932726,161.95,161.94,0.06]
[1754209464285,12.21932726,161.95,161.93,0.06]
[1754209464488,9.37623529,161.94,161.93,0.06]
[1754209467507,4.16543771,161.94,161.93,0.06]
[1754209468166,9.37623529,161.94,161.93,0.06]
[1754209469691,9.37623529,161.94,161.93,0.77]
[1754209469875,4.16543771,161.94,161.93,0.77]
[1754209470485,4.16543771,161.94,161.93,0.06]
[1754209471294,9.37623529,161.94,161.93,0.06]
[1754209472164,10.09623529,161.94,161.93,0.06]
[1754209472384,17.43012484,161.94,161.93,0.06]
[1754209472970,29.00401123,161.94,161.93,0.06]
[1754209473169,26.0,161.91,161.89,43.04]
[1754209473389,30.16543771,161.9,161.89,43.04]
[1754209475697,30.16921365,161.9,161.89,43.04]
[1754209476193,43.40462026,161.9,161.88,0.06]
[1754209476371,12.1931032,161.89,161.88,0.06]
[1754209476573,17.40214141,161.89,161.88,0.06]
[1754209478196,24.79621959,161.89,161.88,0.06]
[1754209478513,52.24919174,161.89,161.88,0.06]
[1754209479300,26.0,161.86,161.84,0.2]
[1754209479506,37.5031032,161.86,161.84,0.2]
[1754209479800,4.85921365,161.86,161.84,0.2]
[1754209479978,12.1931032,161.86,161.84,0.2]
[1754209484390,4.85921365,161.86,161.84,0.2]
[1754209484592,12.1931032,161.86,161.84,0.2]
[1754209486208,16.80376228,161.86,161.84,0.2]
[1754209488613,33.58844625,161.86,161.84,0.2]
[1754209488787,8.77987273,161.86,161.84,0.2]
[1754209488991,8.77987273,161.86,161.85,0.76]
[1754209489909,8.77987273,161.86,161.85,0.06]
[1754209490484,16.11376228,161.86,161.85,0.06]
[1754209493588,8.77987273,161.86,161.85,0.06]
[1754209494900,16.80376228,161.86,161.85,0.06]
[1754209498398,22.00533594,161.86,161.85,0.06]
[1754209500594,16.80376228,161.86,161.85,0.06]
[1754209501200,16.80281325,161.86,161.85,0.06]
[1754209501435,12.1931032,161.86,161.85,0.06]
[1754209502394,4.16921365,161.86,161.85,0.76]
[1754209502798,4.16921365,161.87,161.85,0.76]
[1754209503317,4.16921365,161.88,161.86,0.7]
[1754209503506,26.0,161.87,161.86,0.7]
[1754209503713,30.16921365,161.87,161.86,0.7]
[1754209504005,30.16921365,161.87,161.85,0.06]
[1754209504006,26.0,161.86,161.85,0.76]
[1754209504209,30.16921365,161.86,161.85,0.76]
[1754209508307,30.15168545,161.86,161.85,0.76]
[1754209511617,30.15168545,161.86,161.85,8.09388955]
[1754209511817,4.15168545,161.86,161.85,8.09388955]
[1754209512036,0.03,161.87,161.85,8.09388955]
[1754209512219,30.18168545,161.87,161.86,7.33388955]
[1754209512412,30.18168545,161.87,161.86,8.04388955]
[1754209512605,30.18168545,161.87,161.86,0.71]
[1754209512809,30.18168545,161.87,161.86,8.04388955]
[1754209516543,30.18168545,161.87,161.86,0.71]
[1754209516842,30.18168545,161.87,161.86,8.04388955]
[1754209517213,4.18168545,161.87,161.86,8.04388955]
[1754209517412,0.03,161.87,161.86,8.04388955]
[1754209519537,4.1917912,161.87,161.86,8.04388955]
[1754209521649,30.8617912,161.87,161.85,0.06]
[1754209521847,30.8317912,161.86,161.85,7.39388955]
[1754209522353,30.1617912,161.86,161.85,7.39388955]
[1754209522859,4.1617912,161.86,161.85,12.24208415]
[1754209524925,4.1617912,161.86,161.85,11.53208415]
[1754209525439,4.1617912,161.86,161.85,54.63208415]
[1754209528456,4.1617912,161.86,161.85,11.53208415]
[1754209528759,4.1617912,161.86,161.85,54.63208415]
[1754209530937,30.8317912,161.86,161.85,43.16]
[1754209532743,4.8317912,161.86,161.85,43.16]
[1754209532958,30.8317912,161.86,161.85,43.16]
[1754209534963,4.8317912,161.86,161.85,43.16]
[1754209535563,30.8317912,161.86,161.85,43.16]
[1754209535758,30.8317912,161.86,161.85,0.06]
[1754209535947,42.30387535,161.86,161.85,43.16]
[1754209536132,47.49348216,161.86,161.85,43.16]
[1754209538562,36.02139801,161.86,161.85,43.16]
[1754209538755,47.49348216,161.86,161.85,43.16]
[1754209538954,36.02139801,161.86,161.85,43.16]
[1754209539159,47.49348216,161.86,161.85,43.16]
[1754209540057,47.49348216,161.86,161.85,0.06]
[1754209544377,36.02139801,161.86,161.85,0.06]
[1754209544556,47.49348216,161.86,161.85,0.06]
[1754209545540,35.35139801,161.86,161.85,0.06]
[1754209545746,30.1617912,161.86,161.85,0.06]
[1754209545966,30.1617912,161.86,161.85,0.73]
[1754209546868,4.1617912,161.86,161.85,0.73]
[1754209548046,4.1617912,161.86,161.85,0.06]
[1754209556463,4.8717912,161.86,161.85,0.06]
[1754209557481,36.06139801,161.86,161.85,0.06]
[1754209558077,36.08588621,161.86,161.85,0.06]
[1754209558469,26.0,161.84,161.83,0.06]
[1754209558673,35.37656753,161.84,161.83,0.06]
[1754209558977,4.87706054,161.84,161.83,0.06]
[1754209562697,4.87583597,161.84,161.83,0.06]
[1754209563873,26.0,161.83,161.82,0.2]
[1754209564073,30.87583597,161.83,161.82,0.2]
[1754209566386,30.16583597,161.83,161.82,0.2]
[1754209566887,35.37143218,161.83,161.82,0.2]
[1754209567775,36.04143218,161.83,161.82,0.2]
[1754209569896,30.83583597,161.83,161.82,0.2]
[1754209570571,36.03935903,161.83,161.82,0.2]
[1754209578392,35.36935903,161.83,161.82,0.2]
[1754209578720,4.16583597,161.83,161.82,8.24613031]
[1754209579088,30.16583597,161.83,161.82,8.24613031]
[1754209581226,30.16583597,161.83,161.82,0.2]
[1754209581892,4.83583597,161.83,161.82,0.2]
[1754209583792,10.03935903,161.83,161.82,0.2]
[1754209590324,9.80904743,161.83,161.82,0.2]
[1754209591320,43.15517774,161.83,161.82,0.2]
[1754209591697,17.15517774,161.83,161.82,0.2]
[1754209592593,43.15517774,161.83,161.82,0.2]
[1754209592790,17.15517774,161.83,161.82,0.2]
[1754209594302,11.95165468,161.83,161.82,0.2]
[1754209595323,11.95165468,161.83,161.81,0.06]
[1754209595527,31.90757987,161.82,161.81,0.06]
[1754209600537,31.20757987,161.82,161.81,0.06]
[1754209601616,31.21556717,161.82,161.81,0.06]
[1754209602127,35.3880209,161.82,161.81,0.06]
[1754209602307,30.17245373,161.82,161.81,0.06]
[1754209603636,30.87245373,161.82,161.81,0.06]
[1754209604729,4.87245373,161.82,161.81,0.06]
[1754209605414,4.17245373,161.82,161.81,0.06]
[1754209606220,30.17245373,161.82,161.81,0.06]
[1754209606434,30.17245373,161.82,161.81,8.06613031]
[1754209606639,4.17245373,161.82,161.81,8.06613031]
[1754209608746,4.17245373,161.82,161.81,0.72]
[1754209609041,4.17245373,161.82,161.81,8.06613031]
[1754209610440,4.17245373,161.82,161.81,0.72]
[1754209611451,30.17245373,161.82,161.81,0.72]
[1754209612142,4.17245373,161.82,161.81,0.72]
[1754209612328,4.17245373,161.82,161.81,0.06]
[1754209612838,10.09256626,161.82,161.81,0.06]
[1754209614950,26.0,161.81,161.8,43.26]
[1754209615149,35.39150592,161.81,161.8,43.26]
[1754209615353,36.09150592,161.81,161.8,43.26]
[1754209623425,30.87245373,161.81,161.8,43.26]
[1754209625560,36.09054099,161.81,161.8,43.26]
[1754209628555,36.09054099,161.81,161.8,0.2]
[1754209628742,36.09054099,161.81,161.8,43.28]
[1754209628743,38.21858404,161.81,161.8,43.28]
[1754209629859,4.87245373,161.81,161.8,43.28]
[1754209630034,12.21858404,161.81,161.8,32.82581067]
[1754209630228,17.43689874,161.81,161.8,32.82581067]
[1754209631359,12.21858404,161.81,161.8,32.82581067]
[1754209632731,4.87245373,161.81,161.8,32.82581067]
[1754209632932,12.21858404,161.81,161.8,32.82581067]
[1754209633360,4.87245373,161.81,161.8,32.82581067]
[1754209635947,4.17245373,161.81,161.8,32.82581067]
[1754209638064,30.17245373,161.81,161.8,32.82581067]
[1754209638255,30.17245373,161.81,161.8,33.49581067]
[1754209638446,30.17245373,161.81,161.8,40.84194098]
[1754209639636,30.17245373,161.81,161.8,33.49581067]
[1754209639846,30.17245373,161.81,161.8,40.84194098]
[1754209640144,4.17245373,161.81,161.8,40.84194098]
[1754209640484,26.0,161.8,161.79,0.2]
[1754209640635,51.58180879,161.8,161.71,0.67]
[1754209640835,42.78468397,161.7,161.68,0.2]
[1754209641138,81.94886827,161.7,161.68,0.2]
[1754209641335,70.80087429,161.7,161.68,0.2]
[1754209641644,40.00721574,161.7,161.68,7.54613031]
[1754209641961,40.00721574,161.7,161.69,0.87]
[1754209642271,34.80032785,161.7,161.69,0.2]
[1754209642452,33.24851913,161.7,161.69,0.2]
[1754209643144,50.61679796,161.7,161.69,0.2]
[1754209643342,60.5743157,161.7,161.69,0.2]
[1754209644454,55.37799114,161.7,161.69,0.2]
[1754209644663,43.8766002,161.7,161.69,0.2]
[1754209644979,49.07292476,161.7,161.69,0.2]
[1754209645278,43.8766002,161.7,161.69,0.2]
[1754209646270,48.93527,161.7,161.69,0.2]
[1754209646470,53.54283514,161.7,161.69,0.2]
[1754209647298,47.82375452,161.7,161.69,0.2]
[1754209647484,34.77960805,161.7,161.69,0.87]
[1754209647811,4.60715432,161.7,161.69,0.87]
[1754209647986,4.60365825,161.7,161.69,0.87]
[1754209648152,3.1433265,161.74,161.69,0.87]
[1754209648348,4.60278432,161.73,161.69,0.2]
[1754209648585,26.0,161.71,161.7,0.67]
[1754209648891,30.60278432,161.71,161.7,0.67]
[1754209649458,4.60278432,161.71,161.7,0.67]
[1754209652500,26.0,161.72,161.7,0.67]
[1754209654993,26.0,161.72,161.71,0.69]
[1754209655903,26.66,161.72,161.69,0.2]
[1754209656071,26.66,161.72,161.69,0.89]
[1754209656987,26.0,161.72,161.69,0.2]
[1754209657188,0.66,161.71,161.69,0.2]
[1754209657395,0.66,161.71,161.7,43.32]
[1754209658402,26.0,161.72,161.7,43.32]
[1754209659206,26.0,161.72,161.69,0.89]
[1754209659396,26.0,161.72,161.7,43.32]
[1754209660287,26.0,161.72,161.69,0.89]
[1754209660489,26.0,161.72,161.7,44.01]
[1754209660789,26.0,161.72,161.7,0.69]
[1754209661097,26.0,161.72,161.71,43.3]
[1754209661279,26.0,161.72,161.7,0.69]
[1754209661476,18.07883207,161.75,161.71,43.99]
[1754209661789,26.0,161.72,161.71,43.3]
[1754209662282,26.0,161.72,161.71,43.99]
[1754209663077,26.0,161.72,161.71,43.3]
[1754209665699,26.0,161.72,161.71,43.99]
[1754209665907,26.0,161.72,161.71,0.69]
[1754209666199,26.0,161.72,161.71,43.97]
[1754209668381,26.0,161.72,161.71,0.69]
[1754209668791,26.0,161.72,161.71,43.97]
[1754209668991,26.0,161.72,161.7,0.69]
[1754209669499,26.0,161.72,161.71,43.26]
[1754209669710,26.0,161.72,161.7,0.69]
[1754209669909,26.0,161.72,161.71,43.26]
[1754209670405,26.0,161.72,161.71,43.95]
[1754209670990,26.0,161.72,161.69,0.2]
[1754209671188,26.66,161.72,161.7,43.26]
[1754209671404,26.0,161.72,161.7,43.26]
[1754209672006,26.0,161.72,161.7,43.95]
[1754209673406,26.0,161.72,161.7,43.26]
[1754209675212,26.66,161.72,161.69,0.89]
[1754209675682,26.66,161.72,161.7,43.24]
[1754209680083,26.66,161.72,161.71,43.26]
[1754209680294,30.81578701,161.72,161.71,43.24]
[1754209681889,30.15578701,161.72,161.71,43.24]
[1754209682796,30.81578701,161.72,161.71,43.24]
[1754209684693,30.81578701,161.72,161.69,0.89]
[1754209684900,4.80578701,161.71,161.7,43.24]
[1754209685886,30.80578701,161.71,161.69,0.2]
[1754209686081,4.80578701,161.7,161.69,0.2]
[1754209686305,4.80578701,161.7,161.69,43.42]
[1754209690004,4.80578701,161.7,161.69,0.2]
[1754209690224,30.80578701,161.7,161.69,43.4]
[1754209690717,30.80578701,161.7,161.69,0.2]
[1754209690925,30.80578701,161.7,161.69,43.4]
[1754209690926,36.00211157,161.7,161.69,43.4]
[1754209691808,36.00211157,161.7,161.69,0.2]
[1754209692325,36.00211157,161.7,161.69,43.4]
[1754209692989,36.00211157,161.7,161.69,0.2]
[1754209693415,36.00211157,161.7,161.69,43.38]
[1754209694388,36.00211157,161.7,161.69,0.2]
[1754209694589,36.00211157,161.7,161.69,42.95639977]
[1754209694590,30.80578701,161.7,161.69,42.95639977]
[1754209694899,30.80578701,161.7,161.68,0.2]
[1754209694900,26.0,161.69,161.68,0.2]
[1754209695105,30.80578701,161.69,161.68,0.2]
[1754209695305,4.80578701,161.69,161.68,0.2]
[1754209695710,4.80578701,161.69,161.68,0.92]
[1754209695711,35.37467427,161.69,161.68,0.92]
[1754209695992,35.37467427,161.69,161.6,16.78468397]
[1754209695993,26.0,161.62,161.55,0.72]
[1754209696212,26.0,161.6,161.55,0.72]
[1754209696516,26.0,161.58,161.55,44.12]
[1754209696723,26.0,161.58,161.55,43.4]
[1754209696930,4.63163884,161.57,161.56,0.72]
[1754209697327,26.0,161.58,161.56,0.72]
[1754209697528,4.16945518,161.57,161.56,0.72]
[1754209698318,26.0,161.58,161.56,0.72]
[1754209699124,26.0,161.58,161.57,43.42]